fUSD/lending_fUSD_20250618
["ID","MTS","AMOUNT","RATE_DAILY","PERIOD"]
[366421560,1750245039941,-2652.78376648,0.00015103,2]
[366421562,1750245041143,-239.68215511,0.00015103,2]
[366421563,1750245041154,-150.0,0.0001518,2]
[366421564,1750245041164,-150.0,0.00015239,2]
[366421565,1750245041174,-1072.35929472,0.00015245,2]
[366421566,1750245041184,-150.0,0.00015317,2]
[366421567,1750245041194,-168.0,0.00015334,2]
[366421568,1750245041205,-500.0,0.00015342,2]
[366421569,1750245041216,-354.77,0.00015378,2]
[366421570,1750245041227,-313.8,0.00015378,2]
[366421571,1750245041237,-455.2,0.00015378,2]
[366421572,1750245041247,-168.0,0.0001541,2]
[366421573,1750245041257,-1072.35929472,0.00015417,2]
[366421574,1750245041270,-150.0,0.00015473,2]
[366421575,1750245041280,-203.0,0.00015497,5]
[366421576,1750245041289,-1957.856,0.00015524,2]
[366421577,1750245041299,-151.54616944,0.00015524,2]
[366421578,1750245041310,-207.4,0.00015524,2]
[366421579,1750245041319,-256.4583895,0.00015524,2]
[366421580,1750245041328,-500.0,0.00015524,2]
[366421581,1750245041338,-500.0,0.00015524,2]
[366421582,1750245041348,-500.0,0.00015524,2]
[366421583,1750245041357,-500.0,0.00015524,2]
[366421584,1750245041367,-500.0,0.00015524,2]
[366421585,1750245041376,-500.0,0.00015524,2]
[366421586,1750245041387,-500.0,0.00015524,2]
[366421587,1750245041396,-500.0,0.00015524,2]
[366421588,1750245041407,-500.0,0.00015524,2]
[366421589,1750245041416,-500.0,0.00015524,2]
[366421590,1750245041426,-500.0,0.00015524,2]
[366421591,1750245041435,-500.0,0.00015524,2]
[366421592,1750245041445,-500.0,0.00015524,2]
[366421593,1750245041456,-500.0,0.00015524,2]
[366421594,1750245041467,-500.0,0.00015524,2]
[366421595,1750245041476,-500.0,0.00015524,2]
[366421596,1750245041486,-500.0,0.00015524,2]
[366421597,1750245041496,-500.0,0.00015524,2]
[366421598,1750245041505,-500.0,0.00015524,2]
[366421599,1750245041515,-500.0,0.00015524,2]
[366421600,1750245041524,-500.0,0.00015524,2]
[366421601,1750245041534,-500.0,0.00015524,2]
[366421602,1750245041544,-500.0,0.00015524,2]
[366421603,1750245041553,-300.0,0.00015524,2]
[366421604,1750245041563,-500.0,0.00015524,2]
[366421605,1750245041572,-500.0,0.00015524,2]
[366421606,1750245041583,-300.0,0.00015524,2]
[366421607,1750245041592,-500.0,0.00015524,2]
[366421608,1750245041602,-500.0,0.00015524,2]
[366421609,1750245041611,-300.0,0.00015524,2]
[366421610,1750245041621,-500.0,0.00015524,2]
[366421611,1750245041630,-595.56145438,0.00015524,2]
[366421612,1750245041640,-300.0,0.00015524,2]
[366421613,1750245041649,-300.0,0.00015524,2]
[366421614,1750245041658,-300.0,0.00015524,2]
[366421615,1750245041667,-300.0,0.00015524,2]
[366421616,1750245041677,-300.0,0.00015524,2]
[366421617,1750245041686,-300.0,0.00015524,2]
[366421618,1750245041696,-151.0,0.00015524,2]
[366421619,1750245041706,-300.0,0.00015524,2]
[366421620,1750245041716,-318.55656985,0.00015524,2]
[366421621,1750245041725,-151.0,0.00015524,2]
[366421622,1750245041734,-151.0,0.00015524,2]
[366421623,1750245041744,-223.0,0.00015566,2]
[366421624,1750245041753,-2030.296672,0.00015579,2]
[366421625,1750245041762,-1072.35929472,0.0001559,2]
[366421626,1750245041772,-150.0,0.0001559,2]
[366421627,1750245041781,-150.0,0.0001559,2]
[366421628,1750245041791,-150.0,0.0001559,2]
[366421629,1750245041801,-797.71,0.00015597,2]
[366421630,1750245041813,-797.71,0.00015597,2]
[366421631,1750245041823,-2105.41764886,0.00015634,2]
[366421632,1750245041832,-430.0,0.00015643,2]
[366421633,1750245041842,-2183.31810187,0.00015689,2]
[366421634,1750245041851,-150.0,0.00015708,2]
[366421635,1750245041860,-1737.0,0.00015719,2]
[366421636,1750245041870,-505.94749023,0.00015744,2]
[366421637,1750245041879,-1072.35929472,0.00015762,2]
[366421638,1750245041888,-168.0,0.00015801,2]
[366421639,1750245041897,-168.0,0.00015812,2]
[366421640,1750245041906,-150.0,0.00015864,2]
[366421641,1750245041916,-660.0,0.00015871,2]
[366421642,1750245041926,-2329.74,0.0001589,2]
[366421643,1750245041935,-1164.87,0.0001589,2]
[366421644,1750245041943,-194.6112194,0.00015934,2]
[366421645,1750245041956,-877.74807532,0.00015934,2]
[366421646,1750245041966,-151.0,0.00015936,2]
[366421647,1750245041975,-150.0,0.00015942,2]
[366421648,1750245041984,-481.0,0.00015949,2]
[366421649,1750245041993,-168.0,0.00015973,2]
[366421650,1750245042002,-185.24,0.00016,2]
[366421651,1750245042012,-200.0,0.00016,2]
[366421652,1750245042021,-150.0,0.00016001,2]
[366421653,1750245042031,-234.0,0.00016015,2]
[366421654,1750245042041,-168.0,0.0001602,2]
[366421655,1750245042050,-1508.42800468,0.00016027,2]
[366421656,1750245042062,-243.57199532,0.00016027,2]
[366421657,1750245042071,-372.77773783,0.00016039,2]
[366421658,1750245042081,-497.63,0.00016084,2]
[366421659,1750245042090,-508.65,0.00016084,2]
[366421660,1750245042100,-725.0,0.00016093,2]
[366421661,1750245042109,-1491.0,0.000161,2]
[366421662,1750245042119,-1331.0,0.00016105,2]
[366421663,1750245042128,-1072.35929472,0.00016107,2]
[366421664,1750245042138,-784.943524,0.00016109,2]
[366421665,1750245042147,-168.0,0.0001616,2]
[366421666,1750245042156,-300.0,0.00016167,2]
[366421667,1750245042166,-300.77,0.00016167,2]
[366421668,1750245042175,-505.97,0.00016167,2]
[366421669,1750245042185,-2152.32744814,0.0001617,2]
[366421670,1750245042201,-1050.61740654,0.0001617,2]
[366421671,1750245042216,-3797.05514532,0.0001617,2]
[366421672,1750245042226,-637.0,0.00016174,2]
[366421673,1750245042235,-803.0,0.00016174,2]
[366421674,1750245042245,-591.0,0.00016174,2]
[366421675,1750245042255,-558.0,0.00016174,2]
[366421676,1750245042266,-1277.0,0.00016174,2]
[366421677,1750245042278,-953.82,0.00016174,2]
[366421678,1750245042288,-2003.0,0.00016174,2]
[366421679,1750245042300,-1675.0,0.00016174,2]
[366421680,1750245042311,-150.0,0.00016177,2]
[366421681,1750245042321,-715.0,0.00016182,2]
[366421682,1750245042331,-301.76,0.00016186,2]
[366421683,1750245042340,-490.96,0.00016186,2]
[366421684,1750245042351,-151.32,0.00016186,2]
[366421685,1750245042362,-499.09,0.00016186,2]
[366421686,1750245042371,-302.04,0.00016186,2]
[366421687,1750245042381,-497.2,0.00016186,2]
[366421688,1750245042391,-509.56,0.00016186,2]
[366421689,1750245042401,-304.31,0.00016186,2]
[366421690,1750245042411,-495.62,0.00016186,2]
[366421691,1750245042421,-152.51326048,0.00016205,2]
[366421692,1750245042431,-3771.594,0.0001623,2]
[366421693,1750245042441,-1000.0,0.0001623,2]
[366421694,1750245042452,-1000.0,0.00016231,2]
[366421695,1750245042462,-500.0,0.00016231,2]
[366421696,1750245042472,-2464.4933889,0.00016232,2]
[366421697,1750245042481,-974.6253036,0.00016232,2]
[366421698,1750245042490,-217.46690883,0.00016232,2]
[366421699,1750245042500,-150.91,0.00016233,2]
[366421700,1750245042514,-508.13,0.00016233,2]
[366421701,1750245042523,-300.65,0.00016233,2]
[366421702,1750245042533,-508.08,0.00016233,2]
[366421703,1750245042542,-4092.0,0.00016235,2]
[366421704,1750245042552,-7114.0,0.00016235,2]
[366421705,1750245042562,-156.0,0.00016235,2]
[366421706,1750245042571,-855.0,0.00016235,2]
[366421707,1750245042580,-1680.0,0.00016246,2]
[366421708,1750245042589,-1976.0,0.0001626,2]
[366421709,1750245042599,-811.29958259,0.00016271,2]
[366421710,1750245042609,-1072.35929472,0.00016279,2]
[366421711,1750245042619,-1363.80070853,0.00016296,2]
[366421712,1750245042629,-2464.49338889,0.00016299,2]
[366421714,1750245042638,-974.6253036,0.00016299,2]
[366421716,1750245042648,-1363.80070853,0.00016299,2]
[366421717,1750245042657,-2000.0,0.00016306,2]
[366421719,1750245042667,-2000.0,0.00016306,2]
[366421720,1750245042677,-2000.0,0.00016307,2]
[366421721,1750245042686,-2000.0,0.00016307,2]
[366421723,1750245042703,-500.0,0.00016307,2]
[366421724,1750245042716,-200.0,0.00016307,2]
[366421726,1750245042726,-500.0,0.00016308,2]
[366421727,1750245042735,-7000.0,0.0001631,2]
[366421730,1750245042744,-200.0,0.00016319,2]
[366421731,1750245042754,-11375.2489644,0.00016329,2]
[366421732,1750245042763,-346780.6811017,0.00016329,2]
[366421734,1750245043150,-410.30174383,0.00016329,2]
[366421735,1750245043162,-476.59485294,0.00016329,2]
[366421737,1750245043215,-2859.57867916,0.00016329,2]
[366421741,1750245043298,-20900.77248026,0.00016329,2]
[366421742,1750245043323,-354.91892458,0.00016329,2]
[366421743,1750245043334,-1337.615544,0.00016329,2]
[366421744,1750245043346,-76222.24496569,0.00016329,2]
[366421748,1750245045719,-499.52849115,0.00016329,2]
[366421749,1750245045769,-824.17429177,0.00016329,2]
[366421750,1750245045780,-1998.90890083,0.00016329,2]
[366421751,1750245045984,-4198.4989874,0.00016329,2]
[366421752,1750245045996,-5809.22492716,0.00016329,2]
[366421764,1750245052052,1275.0,0.0002465,120]
[366421765,1750245052873,419.0,0.0002465,120]
[366421766,1750245053706,1332.0,0.0002465,120]
[366421767,1750245071577,201.0,0.00012879,2]
[366421769,1750245106723,1936.0,0.0002465,120]
[366421770,1750245107504,1342.0,0.0002465,120]
[366421771,1750245108312,1172.0,0.0002465,120]
[366421773,1750245161454,203.0,0.00012879,2]
[366421774,1750245233982,1732.83874387,0.0002465,120]
[366421777,1750245257488,400.0,0.00024657,120]
[366421781,1750245311638,552.24,0.0002465,120]
[366421782,1750245321417,1132.3,0.00024656,120]
[366421784,1750245335407,400.0,0.0002465,120]
[366421786,1750245430623,165.92,0.00012121,2]
[366421793,1750245580176,2499.998,0.00024658,120]
[366421799,1750245651785,488.34686163,0.00023425,120]
[366421800,1750245652926,318.91734308,0.00024596,120]
[366421873,1750245874040,403.4800488,0.00024649,120]
[366421887,1750245996333,233.76740973,0.00018,30]
[366421923,1750246183756,400.0,0.00024657,120]
[366421924,1750246185894,500.0,0.00024657,120]
[366421925,1750246186471,1394.0,0.0002465,120]
[366421926,1750246192886,500.0,0.00024657,120]
[366421927,1750246199976,500.0,0.00024657,120]
[366421929,1750246207580,500.0,0.00024657,120]
[366421930,1750246227589,276.0,0.00024657,120]
[366421945,1750246232509,-173.37,0.00013699,2]
[366421946,1750246232520,-182.0348634,0.00013706,2]
[366421947,1750246232530,-203.0,0.00013806,2]
[366421948,1750246232541,-205.0,0.00013806,2]
[366421949,1750246232551,-151.0,0.00014122,2]
[366421950,1750246232561,-151.0,0.00014123,2]
[366421951,1750246232570,-151.0,0.00014125,2]
[366421952,1750246232580,-151.0,0.00014126,2]
[366421953,1750246232589,-151.0,0.00014126,2]
[366421954,1750246232599,-2158.139006,0.00014637,2]
[366421955,1750246232608,-200.0,0.00014711,2]
[366421956,1750246232618,-167.32,0.00014739,2]
[366421957,1750246232628,-906.68,0.00014768,2]
[366421958,1750246232638,-290.0,0.000148,2]
[366421959,1750246232647,-666.0,0.00014802,2]
[366421960,1750246232657,-670.8,0.00014809,2]
[366421961,1750246232667,-300.0,0.00014843,2]
[366421962,1750246232677,-1200.0,0.00014843,2]
[366421963,1750246232688,-300.0,0.00014843,2]
[366421964,1750246232697,-150.0,0.00014844,2]
[366421965,1750246232707,-150.0,0.00014844,2]
[366421966,1750246232717,-155.38012534,0.00014844,2]
[366421967,1750246232727,-153.34517384,0.00014844,2]
[366421968,1750246232738,-150.0,0.00014844,2]
[366421970,1750246232750,-150.45074989,0.00014844,2]
[366421972,1750246232760,-150.41998165,0.00014844,2]
[366421974,1750246232770,-250.0,0.0001485,2]
[366421976,1750246232780,-1637.2,0.0001485,2]
[366421978,1750246232791,-200.0,0.00014875,7]
[366421980,1750246232800,-290.0,0.00014877,2]
[366421981,1750246232810,-1241.84145874,0.000149,2]
[366421983,1750246232819,-615.56,0.00014906,2]
[366421985,1750246232829,-1000.0,0.00014922,2]
[366421987,1750246232838,-35488.45864074,0.00015,2]
[366421995,1750246232926,-298.51142049,0.00015,2]
[366421997,1750246232939,-1045.3,0.00015,2]
[366422004,1750246233000,-329.75,0.00015,2]
[366422006,1750246233016,-2794.67372149,0.00015,2]
[366422008,1750246233025,-1304.33626355,0.00015,14]
[366422010,1750246233036,-290.0,0.0001502,2]
[366422012,1750246233046,-1500.0,0.00015033,2]
[366422014,1750246233056,-1241.84145851,0.00015072,2]
[366422016,1750246233067,-200.0,0.00015093,2]
[366422017,1750246233078,-290.0,0.000151,2]
[366422019,1750246233089,-23900.0,0.00015117,2]
[366422021,1750246233100,-426.67,0.00015141,2]
[366422023,1750246233110,-203.0,0.00015164,3]
[366422025,1750246233120,-677.42,0.00015218,2]
[366422027,1750246233130,-1241.84145851,0.00015245,2]
[366422029,1750246233140,-290.0,0.00015331,2]
[366422031,1750246233150,-1241.84145851,0.00015417,2]
[366422032,1750246233159,-150.0,0.00015432,2]
[366422034,1750246233170,-165.13,0.00015479,2]
[366422036,1750246233179,-151.0,0.00015524,2]
[366422038,1750246233189,-207.4,0.00015524,2]
[366422040,1750246233199,-1241.84145851,0.0001559,2]
[366422042,1750246233209,-290.0,0.00015691,2]
[366422044,1750246233219,-1241.84145851,0.00015762,2]
[366422046,1750246233229,-150.0,0.00015924,2]
[366422048,1750246233239,-1241.84145851,0.00015934,2]
[366422049,1750246233249,-9518.40762,0.00016,2]
[366422051,1750246233258,-200.0,0.00016,2]
[366422053,1750246233268,-290.0,0.00016075,2]
[366422055,1750246233278,-1241.84145851,0.00016107,2]
[366422057,1750246233290,-150.0,0.00016131,2]
[366422059,1750246233300,-150.0,0.00016159,2]
[366422061,1750246233310,-7000.0,0.0001617,2]
[366422063,1750246233320,-420.0,0.00016247,2]
[366422064,1750246233331,-152.51326046,0.00016262,2]
[366422066,1750246233341,-1241.84145851,0.00016279,2]
[366422068,1750246233351,-200.0,0.00016284,2]
[366422070,1750246233362,-7000.0,0.000163,2]
[366422072,1750246233372,-150.0,0.00016305,2]
[366422074,1750246233382,-2000.0,0.00016306,2]
[366422076,1750246233392,-3177.059,0.00016306,2]
[366422078,1750246233402,-198.155,0.00016306,2]
[366422080,1750246233412,-2000.0,0.00016307,2]
[366422081,1750246233422,-2000.0,0.00016307,2]
[366422083,1750246233432,-500.0,0.00016307,2]
[366422085,1750246233442,-200.0,0.00016307,2]
[366422087,1750246233452,-290.0,0.00016311,2]
[366422089,1750246233463,-4097.9049702,0.00016324,2]
[366422091,1750246233473,-1305.9257597,0.00016324,2]
[366422093,1750246233483,-7811.1205304,0.00016324,2]
[366422095,1750246233493,-150.48273956,0.00016324,2]
[366422096,1750246233504,-150.0,0.00016324,2]
[366422097,1750246233515,-150.0,0.00016324,2]
[366422098,1750246233525,-150.0,0.00016324,2]
[366422099,1750246233537,-500.0,0.00016324,2]
[366422100,1750246233547,-152.11962139,0.00016324,2]
[366422101,1750246233558,-150.0,0.00016324,2]
[366422102,1750246233568,-150.0,0.00016324,2]
[366422103,1750246233578,-150.0,0.00016324,2]
[366422104,1750246233588,-150.0,0.00016324,2]
[366422105,1750246233598,-500.0,0.00016324,2]
[366422106,1750246233607,-153.2539826,0.00016324,2]
[366422107,1750246233618,-500.0,0.00016324,2]
[366422108,1750246233628,-150.0,0.00016324,2]
[366422109,1750246233638,-150.0,0.00016324,2]
[366422110,1750246233648,-150.0,0.00016324,2]
[366422111,1750246233659,-1447.0,0.00016327,2]
[366422112,1750246233669,-1098.27808479,0.00016328,5]
[366422114,1750246233679,-154.0,0.00016329,2]
[366422115,1750246233690,-155.17344834,0.00016329,2]
[366422116,1750246233699,-500.0,0.00016335,2]
[366422117,1750246233709,-166.63313128,0.00016335,2]
[366422118,1750246233719,-165.63971983,0.00016335,2]
[366422119,1750246233729,-159.90616622,0.00016335,2]
[366422120,1750246233739,-500.0,0.00016335,2]
[366422121,1750246233749,-160.5617667,0.00016338,2]
[366422122,1750246233759,-181.03269794,0.00016338,2]
[366422123,1750246233770,-195.72021792,0.00016338,2]
[366422124,1750246233781,-795.33147963,0.00016338,2]
[366422125,1750246233792,-2418.7367,0.00016338,2]
[366422126,1750246233802,-217.94031613,0.00016351,2]
[366422127,1750246233812,-202.79560054,0.00016351,2]
[366422128,1750246233822,-150.0,0.00016351,2]
[366422129,1750246233832,-500.0,0.00016351,2]
[366422130,1750246233842,-150.0,0.00016351,2]
[366422131,1750246233852,-150.0,0.00016351,2]
[366422132,1750246233863,-150.0,0.00016351,2]
[366422133,1750246233874,-150.0,0.00016351,2]
[366422134,1750246233887,-500.0,0.00016351,2]
[366422135,1750246233898,-500.0,0.00016351,2]
[366422136,1750246233907,-156.54496774,0.00016351,2]
[366422137,1750246233917,-150.98885557,0.00016351,2]
[366422138,1750246233929,-267.25822858,0.00016351,2]
[366422139,1750246233939,-200.0,0.00016354,2]
[366422140,1750246233949,-542.29387625,0.00016362,2]
[366422141,1750246233960,-500.0,0.00016362,2]
[366422142,1750246233969,-150.0,0.00016364,2]
[366422143,1750246233981,-200.0,0.00016375,2]
[366422144,1750246233990,-150.0,0.00016379,2]
[366422145,1750246234000,-500.0,0.00016379,2]
[366422146,1750246234010,-150.0,0.00016379,2]
[366422147,1750246234019,-150.0,0.00016379,2]
[366422148,1750246234029,-150.0,0.00016379,2]
[366422149,1750246234040,-150.0,0.00016379,2]
[366422150,1750246234051,-500.0,0.00016379,2]
[366422151,1750246234060,-500.0,0.00016379,2]
[366422152,1750246234070,-212.33264616,0.00016383,2]
[366422153,1750246234080,-212.33264616,0.00016388,2]
[366422154,1750246234090,-811.29958259,0.00016389,2]
[366422155,1750246234100,-500.0,0.0001639,2]
[366422156,1750246234109,-290.0,0.0001639,2]
[366422157,1750246234120,-811.29958259,0.0001639,2]
[366422158,1750246234129,-1363.80070853,0.00016391,2]
[366422159,1750246234140,-795.33147958,0.00016393,2]
[366422160,1750246234150,-500.0,0.00016395,2]
[366422161,1750246234160,-212.33264616,0.000164,2]
[366422162,1750246234171,-201.82766192,0.000164,2]
[366422163,1750246234181,-198.78817974,0.00016406,2]
[366422164,1750246234192,-500.0,0.00016406,2]
[366422165,1750246234205,-207.07030337,0.00016406,2]
[366422166,1750246234215,-206.17533536,0.00016406,2]
[366422167,1750246234225,-205.83489303,0.00016406,2]
[366422168,1750246234235,-253.05246388,0.00016406,2]
[366422169,1750246234245,-500.0,0.00016406,2]
[366422170,1750246234255,-306.06207231,0.00016406,2]
[366422171,1750246234266,-150.0,0.00016411,2]
[366422172,1750246234276,-236.30738567,0.00016411,2]
[366422173,1750246234288,-201.98796862,0.00016411,2]
[366422174,1750246234298,-101.30686367,0.00016411,2]
[366422175,1750246234318,-398.69313633,0.00016411,2]
[366422176,1750246234329,-150.0,0.00016411,2]
[366422177,1750246234339,-500.0,0.00016411,2]
[366422178,1750246234350,-150.0,0.00016411,2]
[366422179,1750246234359,-254.30686367,0.00016411,2]
[366422180,1750246234371,-245.69313633,0.00016411,2]
[366422181,1750246234381,-150.0,0.00016411,2]
[366422182,1750246234391,-150.0,0.00016411,2]
[366422183,1750246234401,-150.0,0.00016411,2]
[366422184,1750246234411,-500.0,0.00016411,2]
[366422185,1750246234421,-150.0,0.00016411,2]
[366422186,1750246234431,-500.0,0.00016417,2]
[366422187,1750246234441,-454.30686367,0.00016423,2]
[366422188,1750246234457,-4662.56653413,0.00016423,2]
[366422189,1750246234467,-4243.2608664,0.00016423,2]
[366422190,1750246234477,-150.0,0.00016427,2]
[366422191,1750246234488,-151.0,0.0001643,2]
[366422192,1750246234498,-151.0,0.0001643,2]
[366422193,1750246234509,-151.0,0.0001643,2]
[366422194,1750246234519,-151.0,0.0001643,2]
[366422195,1750246234529,-151.0,0.0001643,2]
[366422196,1750246234541,-151.0,0.0001643,2]
[366422197,1750246234551,-152.929888,0.0001643,2]
[366422198,1750246234561,-151.0,0.0001643,2]
[366422199,1750246234571,-151.0,0.0001643,2]
[366422200,1750246234581,-151.0,0.0001643,2]
[366422201,1750246234592,-195.948324,0.0001643,2]
[366422202,1750246234601,-195.948324,0.0001643,2]
[366422203,1750246234611,-290.22714,0.0001643,2]
[366422204,1750246234621,-151.0,0.0001643,2]
[366422205,1750246234630,-270.631176,0.0001643,2]
[366422206,1750246234640,-270.631176,0.0001643,2]
[366422207,1750246234650,-500.0,0.00016433,2]
[366422208,1750246234660,-226.89261081,0.00016433,2]
[366422209,1750246234670,-500.0,0.00016434,2]
[366422210,1750246234684,-500.0,0.00016434,2]
[366422211,1750246234695,-13483.24404493,0.00016434,2]
[366422221,1750246237868,-151.0,0.00014128,2]
[366422222,1750246237879,-229.559999,0.00016434,2]
[366422223,1750246238039,-590.7376096,0.00016434,2]
[366422224,1750246238145,-6535.72417078,0.00016434,2]
[366422225,1750246238157,-2018.72589992,0.00016434,2]
[366422414,1750246240035,-28357.94670037,0.00016434,2]
[366422416,1750246240045,-151.0,0.00016434,2]
[366422418,1750246240055,-151.0,0.00016434,2]
[366422420,1750246240064,-151.0,0.00016434,2]
[366422422,1750246240074,-151.0,0.00016434,2]
[366422424,1750246240084,-151.0,0.00016434,2]
[366422426,1750246240093,-151.0,0.00016434,2]
[366422428,1750246240103,-151.0,0.00016434,2]
[366422430,1750246240112,-151.0,0.00016434,2]
[366422432,1750246240122,-151.161231,0.00016434,2]
[366422434,1750246240132,-151.0,0.00016434,2]
[366422436,1750246240141,-152.379448,0.00016434,2]
[366422438,1750246240151,-151.0,0.00016434,2]
[366422440,1750246240161,-151.0,0.00016434,2]
[366422441,1750246240170,-151.96296,0.00016434,2]
[366422442,1750246240186,-151.0,0.00016434,2]
[366422443,1750246240197,-151.0,0.00016434,2]
[366422444,1750246240208,-11177.72240044,0.00016435,2]
[366422445,1750246240390,-5553.54402503,0.00016435,2]
[366422446,1750246240494,-5225.5257277,0.00016435,2]
[366422459,1750246243042,-336.33294802,0.00016435,2]
[366422460,1750246243095,-537.71756389,0.00016435,2]
[366422461,1750246243108,-10578.0,0.00016435,2]
[366422462,1750246243197,-641.12545339,0.00016435,2]
[366422463,1750246243209,-21885.31728241,0.00016435,2]
[366422465,1750246245956,-952.51681996,0.00016435,2]
[366422466,1750246246095,-4457.09585713,0.00016435,2]
[366422467,1750246246172,-684.64800033,0.00016435,2]
[366422468,1750246246183,-1076.70404442,0.00016435,2]
[366422481,1750246246539,311.0,0.0002465,120]
[366422482,1750246247410,1255.0,0.0002465,120]
[366422483,1750246250968,500.0,0.00024657,120]
[366422490,1750246311856,1125.0,0.0002465,120]
[366422494,1750246382333,321.072694,0.00024657,120]
[366422502,1750246629497,2000.0,0.00024658,120]
[366422507,1750246801330,570.0,0.00024657,120]
[366422514,1750246995660,217.0,0.00024658,120]
[366422516,1750247086619,400.0,0.00024657,120]
[366422518,1750247151961,150.0,0.00024658,120]
[366422524,1750247349193,-203.0,0.00013523,2]
[366422525,1750247349216,-164.7,0.00013699,2]
[366422526,1750247349238,-150.0,0.0001477,2]
[366422527,1750247349261,-203.0,0.00014851,3]
[366422528,1750247349283,-166.42,0.00014956,2]
[366422529,1750247349304,-250.0,0.00014997,2]
[366422530,1750247349326,-200.0,0.00014997,7]
[366422531,1750247349350,-1200.0,0.00015012,2]
[366422532,1750247349371,-300.0,0.00015012,2]
[366422533,1750247349393,-7162.88,0.00015013,2]
[366422534,1750247350496,-1469.03,0.00015013,2]
[366422535,1750247350518,-175.18,0.00015062,2]
[366422536,1750247350539,-300.0,0.00015084,2]
[366422537,1750247350560,-1000.0,0.00015085,2]
[366422538,1750247350582,-7055.79,0.00015085,2]
[366422539,1750247351263,-10000.0,0.00015085,2]
[366422540,1750247351835,-10000.0,0.00015085,2]
[366422541,1750247352428,-10000.0,0.00015085,2]
[366422542,1750247353957,-3694.27593141,0.00015085,2]
[366422546,1750247407415,-150.0,0.00015093,2]
[366422547,1750247407438,-1200.0,0.00015121,2]
[366422548,1750247407460,-8650.0,0.00015122,2]
[366422549,1750247408532,-10000.0,0.00015122,2]
[366422551,1750247409658,-5250.0,0.00015122,2]
[366422552,1750247409682,-175.18,0.00015137,2]
[366422553,1750247409706,-200.0,0.00015147,2]
[366422554,1750247409731,-150.0,0.0001515,2]
[366422555,1750247409754,-203.0,0.00015179,2]
[366422556,1750247409779,-177.1,0.00015182,2]
[366422557,1750247411426,150.0,0.00014891,2]
[366422561,1750247432059,-1386.51,0.00015203,2]
[366422562,1750247432069,-152.0,0.00015252,3]
[366422563,1750247432079,-152.56,0.0001543,2]
[366422564,1750247432089,-152.0,0.00015475,4]
[366422565,1750247432098,-1957.856,0.00015524,2]
[366422566,1750247432109,-207.4,0.00015524,2]
[366422567,1750247432118,-500.0,0.00015524,2]
[366422568,1750247432128,-500.0,0.00015524,2]
[366422569,1750247432140,-500.0,0.00015524,2]
[366422570,1750247432150,-500.0,0.00015524,2]
[366422571,1750247432160,-500.0,0.00015524,2]
[366422572,1750247432169,-500.0,0.00015524,2]
[366422573,1750247432179,-500.0,0.00015524,2]
[366422574,1750247432189,-500.0,0.00015524,2]
[366422575,1750247432198,-500.0,0.00015524,2]
[366422576,1750247432208,-500.0,0.00015524,2]
[366422577,1750247432217,-300.0,0.00015524,2]
[366422578,1750247432227,-400.0,0.00015524,2]
[366422579,1750247432236,-151.0,0.00015524,2]
[366422580,1750247432246,-150.0,0.00015537,2]
[366422581,1750247432256,-168.0,0.00015546,2]
[366422582,1750247432266,-2030.296672,0.00015579,2]
[366422583,1750247432276,-168.0,0.00015601,2]